bitfinex/quotes_BTCUSD_20220105
["timestamp","ask_amount","ask_price","bid_price","bid_amount"]
[1641416289889,0.00321223,43945.0,43942.0,0.25689296]
[1641416290089,0.00125533,43945.0,43944.0,0.40318592]
[1641416290543,0.00125533,43945.0,43944.0,1.01722791]
[1641416290743,0.92873302,43957.0,43944.0,1.01722791]
[1641416291044,0.00126642,43960.0,43947.0,0.00128233]
[1641416291045,0.92873302,43960.0,43947.0,0.00128233]
[1641416291237,0.92843614,43960.0,43947.0,0.00128233]
[1641416291440,0.92843614,43960.0,43956.0,0.28404831]
[1641416291645,0.93743614,43960.0,43957.0,0.50029253]
[1641416291941,0.009,43960.0,43957.0,0.50029253]
[1641416292340,0.009,43960.0,43954.0,0.49354156]
[1641416292539,0.009,43960.0,43956.0,0.056884]
[1641416292738,0.009,43960.0,43956.0,0.256884]
[1641416293138,0.009,43960.0,43954.0,0.29354156]
[1641416293338,0.009,43960.0,43956.0,0.61961415]
[1641416293538,0.227533,43976.0,43957.0,0.369165]
[1641416293738,0.006,43960.0,43956.0,0.9100682]
[1641416293944,0.61040951,43961.0,43958.0,0.2]
[1641416294142,0.61040951,43961.0,43960.0,2.879165]
[1641416294398,1.06699066,43976.0,43961.0,2.31]
[1641416294588,1.06699066,43976.0,43966.0,0.66935142]
[1641416294787,1.06709066,43980.0,43967.0,0.369165]
[1641416294988,0.22148426,43979.0,43967.0,0.79698981]
[1641416295189,0.056869,43975.0,43967.0,0.85385881]
[1641416295588,0.22148426,43974.0,43967.0,0.485902]
[1641416295831,1.39113898,43980.0,43919.0,1.137826]
[1641416295832,0.10376324,43952.0,43919.0,1.137826]
[1641416296004,0.09999999,43944.0,43926.0,0.5]
[1641416296191,0.06999999,43928.0,43919.0,0.25012]
[1641416296588,0.49243463,43925.0,43922.0,0.369165]
[1641416296789,0.06999999,43928.0,43921.0,0.00433]
[1641416297389,1.76431503,43923.0,43921.0,0.00433]
[1641416297591,1.76431503,43923.0,43921.0,0.00733]
[1641416297592,0.29782,43922.0,43921.0,0.00733]
[1641416297789,0.056929,43925.0,43921.0,0.74225112]
[1641416298043,0.07199999,43928.0,43922.0,0.369165]
[1641416298236,0.12892599,43928.0,43923.0,0.22148426]
[1641416298435,0.07199999,43928.0,43924.0,0.369165]
[1641416298635,0.07199999,43928.0,43925.0,0.32776293]
[1641416298636,0.06699999,43928.0,43925.0,0.32776293]
[1641416298836,0.06699999,43928.0,43926.0,0.369165]
[1641416299036,0.06699999,43928.0,43925.0,0.32776293]
[1641416299235,0.12192599,43928.0,43925.0,0.32776293]
[1641416299644,0.12192599,43928.0,43926.0,0.369165]
[1641416299645,0.06599999,43928.0,43926.0,0.369165]
[1641416299836,0.06599999,43928.0,43927.0,0.72544374]
[1641416300038,0.06599999,43928.0,43927.0,1.09460874]
[1641416300239,0.06599999,43928.0,43927.0,0.60460874]
[1641416300539,0.06599999,43928.0,43927.0,0.369165]
[1641416300940,0.06499999,43928.0,43927.0,0.369165]
[1641416301240,0.06499999,43928.0,43927.0,1.209165]
[1641416301442,0.0135307,43940.0,43927.0,1.309165]
[1641416301640,0.0135307,43940.0,43928.0,0.369165]
[1641416301885,0.0135307,43940.0,43931.0,0.50191181]
[1641416302189,0.22496952,43947.0,43935.0,0.40053305]
[1641416302190,0.25842449,43947.0,43935.0,0.40053305]
[1641416302385,0.058165,43947.0,43935.0,0.40053305]
[1641416302585,0.0012569,43947.0,43935.0,0.40053305]
[1641416302985,0.0012569,43947.0,43937.0,0.26995933]
[1641416303184,0.0012569,43947.0,43944.0,0.44327102]
[1641416303485,0.11808838,43951.0,43944.0,0.44327102]
[1641416303686,0.002,43947.0,43944.0,0.44327102]
[1641416304188,0.002,43947.0,43946.0,2.31]
[1641416304385,0.002,43947.0,43946.0,0.369165]
[1641416304789,0.002,43947.0,43946.0,0.36630467]
[1641416304985,0.11808838,43951.0,43946.0,0.36630467]
[1641416305187,0.11808838,43951.0,43948.0,0.63656528]
[1641416305836,0.11808838,43951.0,43949.0,0.36962]
[1641416306436,0.11808838,43951.0,43947.0,0.31909103]
[1641416307135,0.11808838,43951.0,43948.0,0.36962]
[1641416307440,0.11808838,43951.0,43950.0,0.64188876]
[1641416307637,0.11808838,43951.0,43950.0,1.01150876]
[1641416307638,0.12108838,43951.0,43950.0,1.01150876]
[1641416308538,0.12108838,43951.0,43950.0,0.36962]
[1641416308737,0.12108838,43951.0,43948.0,0.001]
[1641416308940,0.12108838,43951.0,43949.0,0.36962]
[1641416309142,0.11808838,43951.0,43947.0,0.31909103]
[1641416309400,0.11808838,43951.0,43944.0,0.6333385]
[1641416309596,0.11808838,43951.0,43947.0,0.001]
[1641416309798,0.30061,43950.0,43947.0,0.001]
[1641416310000,0.70999,43949.0,43947.0,0.001]
[1641416310197,1.977513,43948.0,43947.0,0.001]
[1641416310400,1.97872446,43948.0,43947.0,0.001]
[1641416311005,1.97872446,43948.0,43927.0,0.0001021]
[1641416311007,2.98041446,43948.0,43927.0,0.0001021]
[1641416311202,0.00128957,43932.0,43927.0,0.0001021]
[1641416311402,0.21918648,43937.0,43928.0,0.36962]
[1641416311601,0.0012305,43940.0,43927.0,0.0021021]
[1641416311899,0.0012305,43940.0,43937.0,0.39703028]
[1641416312100,0.68802118,43943.0,43937.0,0.39703028]
[1641416312299,0.74493218,43943.0,43935.0,0.32109116]
[1641416312602,0.30061,43942.0,43938.0,9.127e-05]
[1641416313248,0.056914,43941.0,43938.0,9.127e-05]
[1641416314248,2.23190088,43939.0,43938.0,9.127e-05]
[1641416314449,2.63745788,43939.0,43938.0,9.127e-05]
[1641416314648,2.43745788,43939.0,43938.0,9.127e-05]
[1641416314847,2.38745788,43939.0,43938.0,9.127e-05]
[1641416315647,2.63945788,43939.0,43938.0,9.127e-05]
[1641416315849,0.0012181,43930.0,43928.0,0.01357428]
[1641416316051,2.55360763,43929.0,43928.0,0.01357428]
[1641416316248,0.00125709,43923.0,43921.0,0.00433]
[1641416316448,1.74061,43922.0,43921.0,0.00433]
[1641416316647,0.30061,43922.0,43921.0,0.00433]
[1641416316887,0.05694,43925.0,43921.0,0.00433]
[1641416317285,0.05694,43925.0,43918.0,0.07888894]
[1641416317486,0.00128702,43931.0,43919.0,0.36962]
[1641416317684,0.00128702,43931.0,43921.0,0.002]
[1641416317685,0.11514902,43931.0,43921.0,0.002]
[1641416318085,0.05693,43928.0,43921.0,0.002]
[1641416318285,0.00126242,43927.0,43921.0,0.002]
[1641416318585,0.30061,43926.0,43921.0,0.002]
[1641416318985,0.30061,43926.0,43917.0,0.25765255]
[1641416319185,0.11513242,43927.0,43917.0,0.00050464]
[1641416319386,0.056937,43922.0,43917.0,0.00050464]
[1641416319586,0.056937,43922.0,43917.0,0.28953375]
[1641416319785,0.051937,43922.0,43917.0,0.00050464]
[1641416319988,0.051937,43922.0,43915.0,0.00033]
[1641416320191,0.113881,43923.0,43915.0,0.00033]
[1641416320192,0.30061,43921.0,43915.0,0.00033]
[1641416320553,0.056941,43919.0,43915.0,0.00033]
[1641416321541,0.00126377,43921.0,43915.0,0.00033]
[1641416321740,0.001,43919.0,43915.0,0.00133]
[1641416322141,0.001,43919.0,43914.0,0.01314145]
[1641416322340,0.001,43919.0,43916.0,0.33703873]
[1641416322540,0.001,43919.0,43916.0,0.55077094]
[1641416322743,0.001,43919.0,43917.0,0.36962]
[1641416322944,0.001,43919.0,43916.0,0.28453873]
[1641416323342,0.001,43919.0,43918.0,0.00010229]
[1641416323542,0.056937,43922.0,43918.0,0.00010229]
[1641416323741,0.002,43919.0,43918.0,0.00010229]
[1641416324392,0.002,43919.0,43916.0,0.24964102]
[1641416324793,0.002,43919.0,43916.0,0.001]
[1641416324994,0.113883,43923.0,43915.0,0.65990406]
[1641416325394,0.00127434,43924.0,43915.0,0.65990406]
[1641416325595,0.00127434,43924.0,43914.0,0.01314145]
[1641416325901,0.059935,43923.0,43917.0,0.42561413]
[1641416326096,0.37,43922.0,43910.0,0.11570209]
[1641416326299,0.003,43923.0,43910.0,0.11570209]
[1641416326495,0.003,43923.0,43916.0,0.54528356]
[1641416326695,0.70804506,43927.0,43916.0,0.54528356]
[1641416326696,0.7023194,43927.0,43916.0,0.54528356]
[1641416326896,0.30061,43926.0,43916.0,0.54528356]
[1641416327096,0.00120594,43922.0,43916.0,0.80717176]
[1641416327496,0.05694043,43925.0,43916.0,0.80717176]
[1641416327695,0.001,43922.0,43916.0,0.2628882]
[1641416327895,0.001,43922.0,43920.0,0.5770407]
[1641416328153,0.001,43922.0,43916.0,0.2628882]
[1641416328952,0.056937,43921.0,43910.0,0.00061446]
[1641416329152,0.056937,43921.0,43917.0,0.62761216]
[1641416329752,0.11588281,43921.0,43917.0,0.62761216]
[1641416330153,0.11588281,43921.0,43915.0,0.27197171]
[1641416330352,0.056945,43918.0,43915.0,0.27197171]
[1641416330553,0.056945,43918.0,43913.0,0.43883806]
[1641416330753,0.056945,43918.0,43910.0,0.00044]
[1641416330960,0.056945,43918.0,43905.0,0.0189916]
[1641416331160,0.6193541,43913.0,43900.0,1.11421]
[1641416331358,0.056957,43907.0,43900.0,0.11641]
[1641416331559,0.26226036,43912.0,43900.0,0.11641]
[1641416331560,0.00126438,43904.0,43901.0,0.13]
[1641416331989,0.00126438,43904.0,43900.0,0.11641]
[1641416332190,0.00126438,43904.0,43902.0,0.3247397]
[1641416332391,0.00126438,43904.0,43900.0,0.11641]
[1641416332590,0.30061,43903.0,43900.0,0.11641]
[1641416332790,0.00125981,43902.0,43900.0,0.11641]
[1641416332990,1.49061,43901.0,43900.0,0.11641]
[1641416333391,1.49061,43901.0,43899.0,0.00033]
[1641416333392,0.11641,43900.0,43899.0,0.00033]
[1641416333590,0.60151412,43900.0,43899.0,0.00033]
[1641416333795,0.80274253,43900.0,43899.0,0.00033]
[1641416333992,0.60274253,43900.0,43899.0,0.00033]
[1641416334191,0.46384841,43900.0,43899.0,0.00033]
[1641416335091,0.46384841,43900.0,43898.0,0.0130609]
[1641416335092,0.30061,43899.0,43898.0,0.0130609]
[1641416335294,0.533937,43903.0,43898.0,0.0130609]
[1641416335295,0.42,43903.0,43898.0,0.0130609]
[1641416335551,1.0,43900.0,43898.0,0.0130609]
[1641416335747,1.0,43900.0,43899.0,0.34763954]
[1641416336451,0.995,43900.0,43899.0,0.96153126]
[1641416336648,0.995,43900.0,43899.0,0.94803126]
[1641416336946,0.995,43900.0,43899.0,0.91553126]
[1641416337548,0.995,43900.0,43899.0,0.30163954]
[1641416337747,1.29561,43900.0,43899.0,0.30163954]
[1641416338347,1.55378792,43900.0,43898.0,0.0130609]
[1641416338548,2.60061,43899.0,43898.0,0.0130609]
[1641416338747,0.30061,43899.0,43898.0,0.0130609]
[1641416339591,0.995,43900.0,43898.0,0.0130609]
[1641416339790,0.995,43900.0,43898.0,0.66448331]
[1641416339989,0.995,43900.0,43898.0,0.76448331]
[1641416339990,0.6072,43900.0,43898.0,0.76448331]
[1641416340190,0.6072,43900.0,43899.0,0.36962]
[1641416340389,0.5972,43900.0,43899.0,1.0441645]
[1641416341591,0.5972,43900.0,43899.0,1.5741645]
[1641416341790,0.22445472,43916.0,43899.0,1.5741645]
[1641416342089,0.2469,43921.0,43899.0,1.5741645]
[1641416342090,0.6669,43921.0,43912.0,0.056942]
[1641416342290,0.30061,43914.0,43903.0,0.00127511]
[1641416342490,0.42,43921.0,43906.0,0.1]
[1641416342690,0.06829255,43929.0,43904.0,0.36962]
[1641416342691,0.23020762,43927.0,43912.0,0.09848136]
[1641416342892,0.23020762,43927.0,43925.0,0.38801024]
[1641416342893,0.00151863,43926.0,43925.0,0.38801024]
[1641416343154,0.00151863,43926.0,43924.0,0.056928]
[1641416343354,0.30061,43925.0,43919.0,0.056927]
[1641416343560,0.30061,43925.0,43921.0,0.48845833]
[1641416343751,0.32157674,43929.0,43921.0,0.48845833]
[1641416344052,0.32157674,43929.0,43913.0,0.31439318]
[1641416344053,0.056933,43929.0,43924.0,0.056931]
[1641416344260,0.9367173,43942.0,43924.0,0.056931]
[1641416344261,7.95e-06,43934.0,43928.0,0.5]
[1641416344460,0.70262736,43941.0,43933.0,0.44848136]
[1641416344655,0.08191878,43946.0,43940.0,0.00125353]
[1641416344854,0.08191878,43946.0,43941.0,0.68120046]
[1641416345054,0.10376324,43952.0,43941.0,0.68120046]
[1641416345055,0.71003604,43947.0,43942.0,0.11379589]
[1641416345255,0.71003604,43947.0,43944.0,0.0569]
[1641416345457,0.71003604,43947.0,43946.0,0.00128587]
[1641416345654,0.71003604,43947.0,43946.0,1.99688587]
[1641416345855,0.71003604,43947.0,43946.0,0.41650587]
[1641416346054,0.71003604,43947.0,43946.0,0.51650587]
[1641416346454,0.71003604,43947.0,43946.0,0.41650587]
[1641416346659,0.10376324,43952.0,43946.0,0.04688587]
[1641416346897,0.10376324,43952.0,43948.0,0.11378]
[1641416347091,0.10376324,43952.0,43950.0,0.00129843]
[1641416347292,0.46488838,43951.0,43950.0,0.00129843]
[1641416347492,0.36498838,43951.0,43950.0,0.00129843]
[1641416347893,0.36498838,43951.0,43950.0,3.8665569]
[1641416347894,0.11808838,43951.0,43950.0,3.8665569]
[1641416348094,0.11808838,43951.0,43950.0,4.3861769]
[1641416348295,0.11808838,43951.0,43950.0,4.2905769]
[1641416348793,0.11808838,43951.0,43950.0,4.1905769]
[1641416348992,0.11808838,43951.0,43950.0,4.2905769]
[1641416349195,0.004,43959.0,43950.0,4.2905769]
[1641416349196,0.004,43959.0,43952.0,2.66962]
[1641416349402,0.71791737,43959.0,43958.0,0.00129874]
[1641416349594,0.71791737,43959.0,43958.0,2.71281874]
[1641416349794,0.16302737,43959.0,43958.0,2.71281874]
[1641416349992,0.9313271,43968.0,43959.0,0.09999263]
[1641416350196,0.0001,43970.0,43967.0,2.3]
[1641416350394,0.0001,43970.0,43969.0,1.84505625]
[1641416350653,0.95897889,43970.0,43969.0,1.01657625]
[1641416350849,0.95746026,43970.0,43969.0,1.01657625]
[1641416351051,0.95897889,43970.0,43969.0,0.41152]
[1641416351252,0.95746026,43970.0,43969.0,0.73353814]
[1641416351452,1.06699066,43977.0,43969.0,3.13353814]
[1641416351652,1.06699066,43977.0,43973.0,0.05685]
[1641416351851,0.0001,43980.0,43976.0,2.67086891]
[1641416352055,0.00151863,43986.0,43979.0,0.36962]
[1641416352251,0.00151863,43986.0,43985.0,0.00129708]
[1641416352450,1.08168923,43996.0,43987.0,0.36962]
[1641416352655,1.08168923,43996.0,43995.0,0.0012443]
[1641416352952,1.08168923,43996.0,43995.0,2.3999663]
[1641416353150,0.62717523,43996.0,43995.0,3.14495429]
[1641416353350,0.4378,44006.0,43999.0,0.36962]
[1641416353658,0.4378,44006.0,43995.0,2.81851229]
[1641416353659,0.0001,44010.0,44008.0,0.00122088]
[1641416353853,0.12043324,44017.0,44009.0,2.76959227]
[1641416354051,0.12043324,44017.0,44016.0,0.00122113]
[1641416354294,0.004,44029.0,44018.0,0.056791]
[1641416354601,0.004,44029.0,44028.0,0.00125806]
[1641416354794,0.004,44029.0,44028.0,0.41325365]
[1641416355193,0.004,44029.0,44028.0,0.00125806]
[1641416355498,0.004,44029.0,44018.0,0.00127002]
[1641416355695,0.1,44027.0,44000.0,0.1419]
[1641416355896,0.23241044,44026.0,44010.0,0.00121138]
[1641416356096,0.30706,44025.0,44010.0,0.00121138]
[1641416356297,0.25259567,44025.0,44013.0,0.32019202]
[1641416356498,0.00522761,44029.0,44013.0,0.32019202]
[1641416356696,0.004,44029.0,44023.0,0.00120689]
[1641416356895,0.004,44029.0,44024.0,0.36916]
[1641416357099,0.004,44029.0,44017.0,0.59392707]
[1641416357298,0.004,44029.0,44019.0,0.00122683]
[1641416357497,0.29667031,44028.0,44025.0,0.43485849]
[1641416358151,0.29667031,44028.0,44019.0,0.00122683]
[1641416358352,0.1,44025.0,44012.0,0.23241044]
[1641416358551,0.29667031,44028.0,44013.0,0.36916]
[1641416358750,0.29667031,44028.0,44017.0,0.00128071]
[1641416358751,0.1,44024.0,44017.0,0.00128071]
[1641416358951,0.30706,44023.0,44006.0,0.213608]
[1641416359149,0.1,44024.0,44010.0,0.00127902]
[1641416359349,0.1,44024.0,44017.0,0.35263424]
[1641416359350,0.09500863,44024.0,44017.0,0.35263424]
[1641416359553,0.29667031,44028.0,44017.0,0.35263424]
[1641416359755,0.97389181,44018.0,44017.0,0.35263424]
[1641416359951,1.83301567,44018.0,44017.0,0.35263424]
[1641416360154,1.83251567,44018.0,44010.0,0.00127902]
[1641416360351,1.52666592,44018.0,44010.0,0.00127902]
[1641416361156,0.09500863,44015.0,43999.0,0.113628]
[1641416361357,0.55327411,44018.0,44000.0,0.00126344]
[1641416361554,0.09500863,44012.0,44000.0,0.00126344]
[1641416361800,0.09500863,44007.0,43992.0,0.00128918]
[1641416361999,0.47511649,44001.0,43992.0,0.30623342]
[1641416362198,0.47511649,44001.0,43992.0,0.63457097]
[1641416362401,0.47511649,44001.0,43992.0,0.32833755]
[1641416362798,0.47511649,44001.0,43997.0,0.00499136]
[1641416362996,0.47511649,44001.0,43992.0,0.32833755]
[1641416363202,0.47511649,44001.0,43990.0,0.00124729]
[1641416363203,0.09500863,43999.0,43990.0,0.00124729]
[1641416363401,0.30706,43998.0,43987.0,0.27592213]
[1641416363700,0.00120619,44000.0,43989.0,0.00499136]
[1641416363901,0.30706,43999.0,43989.0,0.00499136]
[1641416364100,0.00120619,44000.0,43992.0,0.66255008]
[1641416364300,0.00120619,44000.0,43996.0,0.42048524]
[1641416364601,1.7626,44016.0,43996.0,0.42048524]
[1641416364603,0.113682,44017.0,43999.0,0.00121282]
[1641416364604,0.00121909,44017.0,43999.0,0.00121282]
[1641416364804,0.00121909,44017.0,44005.0,0.1998]
[1641416365004,0.09500863,44012.0,44005.0,0.1998]
[1641416365202,0.00121909,44017.0,44005.0,0.1998]
[1641416365401,0.09500863,44015.0,44008.0,0.45820938]
[1641416365643,0.09500863,44020.0,44008.0,0.7896467]
[1641416365845,0.00121036,44016.0,44008.0,0.7896467]
[1641416366042,0.00121036,44016.0,44013.0,0.00126546]
[1641416366444,8.696e-05,44015.0,44002.0,0.0012747]
[1641416366647,0.05810476,44009.0,43978.0,0.00011]
[1641416366843,0.09500863,44001.0,43990.0,0.00121293]
[1641416367044,0.32557112,44000.0,43978.0,0.056958]
[1641416367244,0.58517854,43996.0,43987.0,0.28464069]
[1641416367444,0.53617854,43996.0,43995.0,0.34270967]
[1641416367652,0.33690863,43996.0,43989.0,0.00121593]
[1641416367844,0.33690863,43996.0,43982.0,0.00138557]
[1641416367845,0.0419,43996.0,43982.0,0.00138557]
[1641416368045,0.13690863,43996.0,43982.0,0.00138557]
[1641416368246,0.0419,43996.0,43985.0,0.00499136]
[1641416368446,0.0419,43996.0,43990.0,0.00499136]
[1641416368645,0.30706,43995.0,43994.0,0.32693078]
[1641416368845,0.27702249,44001.0,43994.0,0.32693078]
[1641416368846,0.0419,44000.0,43994.0,0.32693078]
[1641416370509,0.013681,44008.0,43996.0,0.00499136]
[1641416370705,0.013681,44008.0,43999.0,0.00120095]
[1641416370906,0.013681,44008.0,44001.0,0.30609544]
[1641416371108,0.013681,44008.0,44005.0,0.00499136]
[1641416371304,0.00121053,44007.0,44002.0,0.23574714]
[1641416371510,0.00121053,44007.0,44006.0,0.52374981]
[1641416371714,0.00121053,44007.0,44006.0,0.8941353]
[1641416372506,9.153e-05,44008.0,44007.0,2.66916]
[1641416372705,9.153e-05,44008.0,44007.0,2.67043073]
[1641416372907,9.153e-05,44008.0,44007.0,2.77043073]
[1641416373137,9.153e-05,44008.0,44007.0,0.37043073]
[1641416373342,1.01009153,44008.0,44007.0,0.00127073]
[1641416373538,0.30715153,44008.0,44006.0,0.00499136]
[1641416373738,9.153e-05,44008.0,44005.0,0.00129309]
[1641416373938,0.30706,44007.0,44005.0,0.00129309]
[1641416374338,0.30706,44007.0,44003.0,0.40908233]
[1641416374540,0.30706,44007.0,44004.0,0.00499136]
[1641416374740,0.30706,44007.0,43998.0,0.00121695]
[1641416374945,0.30706,44007.0,43993.0,0.00499136]
[1641416375141,0.39609343,44008.0,43989.0,0.0012904]
[1641416375142,0.09500863,44002.0,43989.0,0.0012904]
[1641416375342,0.04319332,44006.0,43983.0,0.00011]
[1641416375343,0.09500863,43994.0,43983.0,0.00011]
[1641416375547,0.00126905,43990.0,43983.0,0.00011]
[1641416375741,0.6297669,43985.0,43983.0,0.00011]
[1641416375942,2.60706,43984.0,43983.0,0.00510136]
[1641416376140,2.60706,43984.0,43983.0,0.00011]
[1641416376541,0.30706,43984.0,43983.0,0.00510136]
[1641416376797,0.0419,43989.0,43983.0,0.00510136]
[1641416376998,0.00499136,43996.0,43988.0,0.00499136]
[1641416377195,0.30706,43995.0,43992.0,0.00499136]
[1641416377394,0.30706,43995.0,43984.0,0.93974539]
[1641416377595,0.28034797,43994.0,43984.0,0.93974539]
[1641416377794,0.00499136,43996.0,43983.0,0.00011]
[1641416377795,0.31375071,43987.0,43983.0,0.00011]
[1641416377994,0.30706,43986.0,43983.0,0.00011]
[1641416378199,0.25019704,43996.0,43985.0,0.00620115]
[1641416378395,0.30706,43995.0,43985.0,0.00120979]
[1641416378597,0.30706,43995.0,43994.0,0.00499136]
[1641416378796,0.30706,43995.0,43990.0,0.00499136]
[1641416378996,0.26585741,43991.0,43986.0,0.52409441]
[1641416379396,0.26585741,43991.0,43988.0,0.00499136]
[1641416379997,0.26585741,43991.0,43983.0,0.00011]
[1641416379998,0.30706,43990.0,43983.0,0.00011]
[1641416380198,0.30706,43990.0,43986.0,0.00499136]
[1641416380663,0.30706,43990.0,43983.0,0.00011]
[1641416380664,0.50706,43987.0,43983.0,0.00011]
[1641416380865,0.50706,43984.0,43982.0,0.00011]
[1641416381056,0.50706,43984.0,43977.0,0.00011]
[1641416381057,0.30706,43980.0,43977.0,0.00011]
[1641416381255,0.30706,43978.0,43977.0,0.00011]
[1641416381655,0.34896,43978.0,43977.0,0.00011]
[1641416383362,2.3,43977.0,43969.0,0.00021]
[1641416383659,0.04310136,43976.0,43969.0,0.00021]
[1641416383857,2.60706,43975.0,43969.0,0.00021]
[1641416384056,2.72083,43975.0,43974.0,0.00499136]
[1641416384285,2.72083,43975.0,43969.0,0.00021]
[1641416384286,2.92910924,43970.0,43969.0,0.00021]
[1641416384485,2.60706,43970.0,43969.0,0.00021]
[1641416385486,2.6064667,43970.0,43969.0,0.00021]
[1641416386289,0.30706,43970.0,43969.0,0.00021]
[1641416386486,0.098784,43971.0,43969.0,0.00520136]
[1641416387089,0.0419,43971.0,43969.0,0.00520136]
[1641416387288,0.36424855,43971.0,43969.0,0.00520136]
[1641416388139,2.60706,43970.0,43969.0,0.00021]
[1641416388339,2.3419,43970.0,43967.0,0.00011]
[1641416388556,2.3419,43970.0,43954.0,0.00033]
[1641416388557,2.3,43964.0,43954.0,0.00033]
[1641416388741,2.60706,43960.0,43959.0,0.00011]
[1641416388941,0.30706,43959.0,43954.0,0.00033]
[1641416389139,2.60706,43955.0,43954.0,0.00033]
[1641416389338,2.64896,43955.0,43954.0,0.00033]
[1641416389941,2.60706,43955.0,43954.0,0.00033]
[1641416390143,2.60706,43955.0,43954.0,0.00532136]
[1641416390341,0.30706,43955.0,43954.0,0.00532136]
[1641416390644,0.0419,43955.0,43954.0,0.00532136]
[1641416390843,0.01353016,43961.0,43954.0,0.37448136]
[1641416391045,1.75353016,43961.0,43960.0,0.00499136]
[1641416391241,2.10249016,43961.0,43960.0,0.00499136]
[1641416391445,2.63820493,43961.0,43958.0,0.00499136]
[1641416391640,2.63820493,43961.0,43954.0,0.00033]
[1641416391641,0.056897,43957.0,43954.0,0.00033]
[1641416391890,0.00122018,43957.0,43956.0,0.00499136]
[1641416392088,2.60828018,43957.0,43956.0,0.00499136]
[1641416392888,2.60828018,43957.0,43954.0,0.00033]
[1641416393089,2.60828018,43957.0,43954.0,0.00532136]
[1641416393090,2.60706,43955.0,43954.0,0.00532136]
[1641416393289,2.64896,43955.0,43954.0,0.00532136]
[1641416393693,2.64896,43955.0,43953.0,0.00022]
[1641416393694,2.97304542,43955.0,43953.0,0.00011]
[1641416393992,2.97304542,43955.0,43946.0,0.00022]
[1641416393993,0.30706,43951.0,43946.0,0.00022]
[1641416394189,0.30706,43951.0,43940.0,0.00510136]
[1641416394190,0.307128,43947.0,43940.0,0.00011]
[1641416394391,2.60706,43945.0,43940.0,0.00011]
[1641416394590,0.30706,43943.0,43940.0,0.00011]
[1641416394788,0.34896,43943.0,43940.0,0.00011]
[1641416395644,0.05699273,43947.0,43940.0,0.00011]
[1641416395645,0.42,43957.0,43944.0,1.2]
[1641416395845,2.3,43964.0,43945.0,0.07584936]
[1641416396044,2.3,43964.0,43947.0,0.00122516]
[1641416396246,0.0419,43963.0,43952.0,0.33353342]
[1641416396643,0.30900147,43961.0,43954.0,0.65724123]
[1641416396844,0.0419,43960.0,43954.0,0.65724123]
[1641416397045,0.056897,43959.0,43947.0,0.24810404]
[1641416397444,1.2166,43973.0,43957.0,0.1]
[1641416397445,0.00122788,43971.0,43957.0,0.1]
[1641416397647,0.2499,43973.0,43948.0,0.28710568]
[1641416397648,0.2499,43973.0,43965.0,0.1]
[1641416397844,0.0999,43977.0,43971.0,0.00127347]
[1641416398045,1.21459458,43988.0,43976.0,0.10125826]
[1641416398046,0.2499,43982.0,43976.0,0.10125826]
[1641416398248,0.56958118,43986.0,43981.0,0.00127108]
[1641416398645,0.56958118,43986.0,43961.0,0.01278]
[1641416398646,0.56958118,43986.0,43969.0,0.11371233]
[1641416398849,0.56958118,43986.0,43973.0,0.0012239]
[1641416399488,0.05686,43985.0,43981.0,0.24682994]
[1641416399684,0.05686,43985.0,43973.0,0.0012239]
[1641416399887,0.2,43983.0,43957.0,0.24520568]
[1641416400086,0.0419,43984.0,43961.0,0.00128315]
[1641416400087,0.20126783,43981.0,43961.0,0.00128315]
[1641416400286,0.28710568,43980.0,43961.0,0.00128315]
[1641416400589,0.113753,43977.0,43974.0,0.48090499]
[1641416400788,0.33078781,43991.0,43976.0,0.00126607]
[1641416400986,0.2499,43987.0,43980.0,0.00125881]
[1641416401887,0.2499,43987.0,43974.0,0.48090499]
[1641416402288,0.2499,43987.0,43972.0,0.0012499]
[1641416402588,0.2499,43987.0,43950.0,0.577423]
[1641416402589,0.2499,43987.0,43954.0,1.31899202]
[1641416402590,0.09999999,43977.0,43954.0,1.31899202]
[1641416402787,0.11375286,43982.0,43967.0,0.00123677]
[1641416402788,0.11793703,43976.0,43967.0,0.00123677]
[1641416403056,0.24209364,43975.0,43952.0,0.1]
[1641416403246,0.00124347,43980.0,43957.0,0.52882772]
[1641416403247,0.59862306,43969.0,43957.0,0.52882772]
[1641416403445,0.59862306,43969.0,43958.0,0.25506744]
[1641416403644,0.59862306,43969.0,43958.0,0.23076744]
[1641416403846,0.056887,43965.0,43958.0,0.23076744]
[1641416404049,0.26929006,43969.0,43958.0,0.23076744]
[1641416404245,0.21939006,43969.0,43958.0,0.23076744]
[1641416404645,0.47298781,43962.0,43958.0,0.23076744]
[1641416404847,0.47298781,43962.0,43956.0,0.00122045]
[1641416405048,0.47298781,43962.0,43945.0,0.9308]
[1641416405247,0.47298781,43962.0,43946.0,0.0012404]
[1641416405450,0.04111469,43961.0,43946.0,0.0012404]
[1641416405648,0.61674897,43951.0,43946.0,0.0012404]
[1641416405850,0.22910717,43950.0,43942.0,0.00011]
[1641416406050,0.27223316,43950.0,43942.0,0.00011]
[1641416406448,0.58607716,43950.0,43942.0,0.00011]
[1641416406651,0.38607716,43950.0,43942.0,0.00011]
[1641416406889,0.056907,43949.0,43942.0,0.00011]
[1641416407090,0.098821,43948.0,43942.0,0.00011]
[1641416407292,0.22888648,43947.0,43942.0,0.00011]
[1641416407489,0.22888648,43947.0,43936.0,0.0001]
[1641416407490,0.0419,43946.0,43936.0,0.0001]
[1641416407889,0.098816,43946.0,43936.0,0.0001]
[1641416408089,0.05814062,43942.0,43936.0,0.0001]
[1641416408293,0.05814062,43942.0,43934.0,0.00011]
[1641416408294,0.00129555,43937.0,43934.0,0.00011]
[1641416408490,0.0419,43936.0,43934.0,0.00011]
[1641416408892,0.0419,43936.0,43927.0,0.00011]
[1641416408893,2.3,43935.0,43927.0,0.00011]
[1641416409090,0.41125375,43934.0,43924.0,0.00011]
[1641416409294,0.00120448,43928.0,43925.0,0.01372571]
[1641416409692,0.0419,43927.0,43924.0,0.00011]
[1641416409892,0.17303359,43913.0,43909.0,0.24985315]
[1641416410091,0.17303359,43913.0,43909.0,0.00022]
[1641416410552,0.17303359,43913.0,43912.0,0.36288398]
[1641416410741,1.52303359,43913.0,43912.0,0.36288398]
[1641416411141,0.17303359,43913.0,43912.0,0.68430309]
[1641416411342,0.17303359,43913.0,43912.0,0.00011]
[1641416411642,0.21493359,43913.0,43912.0,0.00011]
[1641416411845,0.21493359,43913.0,43912.0,1.2877465]